Cogmind - Beta 15 @@@ ROGUE MODE // 2025.05.11 @ 21:51:07 Player: CosmicStarfish Result: Self-destructed Performance ------------- Evolutions (4) 2000 Regions Visited (5) 1000 Robots Destroyed (21) 105 Value Destroyed (676) 676 Prototype IDs (0) 0 Alien Tech Used (0) 0 Bonus (57) 57 TOTAL SCORE: 3838 Bonus ------- Follower Combat Kills 65 Friendly Fire -8 Cogmind --------- Core Integrity 729/850 Matter 224/300 Energy 250/250 System Corruption 5% Temperature Warning (342) Movement Core (700) Ox13 Location -6/Factory Parts ------- > --- POWER (2) -------- Ion Engine Fusion Compressor > --- PROPULSION (3) --- (None) > --- UTILITY (7) ------ Large Storage Unit Subdweller Optics Improved Sensor Array > --- WEAPON (3) ------- Particle Gun Subdweller Laser > --- INVENTORY (15) --- Micro Nuclear Core Subdweller Monowheel Small Storage Unit Huge Storage Unit Heavy Flak Cannon Mining Laser Peak State ------------ > --- POWER ------------ Ion Engine Fusion Compressor > --- PROPULSION ------- Aluminum Leg VSS Leg > --- UTILITY ---------- Improved Heat Sink Large Storage Unit Subdweller Optics Improved Sensor Array Shock Absorption System > --- WEAPON ----------- Particle Gun Subdweller Laser Assault Rifle > --- INVENTORY -------- Subdweller Monowheel Small Storage Unit Huge Storage Unit Heavy Flak Cannon Grenade Launcher Mining Laser [Rating: 29] Favorites ----------- Power Subdweller Power Source Engine Subdweller Power Source Power Core Fusion Compressor Propulsion Aluminum Leg Leg Aluminum Leg Utility Improved Heat Sink Device Improved Heat Sink Storage Small Storage Unit Weapon Particle Gun Energy Gun Particle Gun Ballistic Gun Light Assault Rifle Launcher Grenade Launcher Special Weapon Mining Laser Build | -11 -10 -10 -10 -8 -6 ------- Run | Yrd Mat Min Sub Rec Fac Slots Evolved 8 | . . . . . 8 Power 1 | . . . . . 1 Propulsion 1 | . . . . . 1 Utility 5 | . . . . . 5 Weapon 1 | . . . . . 1 Parts Attached 27 | 7 6 2 4 2 6 Power 5 | 1 1 . 1 1 1 Engine 4 | 1 1 . 1 1 . Core 1 | . . . . . 1 Reactor . | . . . . . . Propulsion 7 | 2 2 2 . 1 . Treads . | . . . . . . Leg 7 | 2 2 2 . 1 . Wheel . | . . . . . . Hover . | . . . . . . Flight . | . . . . . . Utility 7 | 2 1 . . . 4 Device 5 | 1 1 . . . 3 Storage 2 | 1 . . . . 1 Processor . | . . . . . . Hackware . | . . . . . . Protection . | . . . . . . Artifact . | . . . . . . Weapon 8 | 2 2 . 3 . 1 Energy Gun 3 | . 2 . 1 . . Energy Cannon . | . . . . . . Ballistic Gun 3 | 2 . . . . 1 Ballistic Cannon . | . . . . . . Launcher 1 | . . . 1 . . Special Weapon 1 | . . . 1 . . Impact Weapon . | . . . . . . Slashing Weapon . | . . . . . . Piercing Weapon . | . . . . . . Special Melee Weapon . | . . . . . . Unidentified Prototypes . | . . . . . . Parts Lost 10 | . 3 . 1 . 6 Power 1 | . 1 . . . . Propulsion 3 | . . . 1 . 2 Utility 3 | . 1 . . . 2 Weapon 3 | . 1 . . . 2 Highest Loss Streak 4 | . 2 . 1 . 4 To Critical Strikes . | . . . . . . Average Backups 7 | 2 7 8 8 7 5 Power . | . 1 1 1 . . Propulsion 1 | 1 2 2 1 1 1 Utility 2 | . 1 2 2 3 2 Weapon 2 | 1 2 3 3 3 2 Tool/Special . | . . . . . . Unused Backups 5 | . . . 2 . 3 Power . | . . . . . . Propulsion 3 | . . . 2 . 1 Utility 1 | . . . . . 1 Weapon 1 | . . . . . 1 Tool/Special . | . . . . . . Average Slot Usage (%) 89 | . 93 100 98 86 72 Engine 12 | . 12 14 14 14 6 Leg 20 | . 28 28 26 15 12 Device 14 | . 9 14 14 14 22 Storage 12 | . 14 14 14 14 6 Energy Gun 20 | . 11 28 21 26 13 Ballistic Gun 3 | . 16 . . . 5 Peak Build Rating 29 | 7 10 10 13 15 29 Average Rating 12 | 4 7 10 11 12 24 On Entrance 8 | . 7 10 10 11 13 Naked Turns . | . . . . . . Heaviest Build 46 | 11 15 15 18 18 46 Greatest Support 22 | 20 20 20 20 22 22 Greatest Overweight (x) 3 | 3 . . 1 1 2 Average Overweight (x) . | . . . . . 1 Largest Inventory Capacity 15 | 8 8 8 8 8 15 Average Capacity 9 | 7 8 8 8 8 15 Most Carried 8 | 5 8 8 8 8 7 Average Carried 7 | 3 7 8 7 7 5 Final Capacity 15 | 8 8 8 8 8 15 Final Carried 8 | 5 8 8 8 7 6 Class Distribution -------------------- 71% | Scavenger-Mutant 16% | Scavenger-Skirmisher 12% | Mutant Dominant Class ---------------- Mutant | -10/Materials Scavenger-Mutant | -10/Mines Scavenger-Mutant | -10/Subcaves Scavenger-Mutant | -8/Recycling Scavenger-Skirmisher | -6/Factory Resources | -11 -10 -10 -10 -8 -6 ----------- Run | Yrd Mat Min Sub Rec Fac Matter Collected 720 | 219 160 20 84 69 168 Remotely . | . . . . . . Salvage Created 656 | 68 279 38 130 . 141 Parts 47 | 8 16 . 15 . 8 Haulers Intercepted . | . . . . . . Recyclers Shooed . | . . . . . . Parts Field Recycled . | . . . . . . Retrieved Matter . | . . . . . . Parts Self-Destructed 8 | . . . 8 . . Prevented . | . . . . . . Kills | -11 -10 -10 -10 -8 -6 ------- Run | Yrd Mat Min Sub Rec Fac Combat Hostiles Destroyed 15 | . 6 1 5 . 3 Guns 13 | . 6 1 3 . 3 AOE 2 | . . . 2 . . Classes Destroyed 8 | 2 2 . 3 . 1 Worker 2 | 2 . . . . . Tunneler 1 | 1 . . . . . Turret 2 | . . . 2 . . Watcher 1 | . 1 . . . . Swarmer 2 | . . . 2 . . Grunt 8 | . 6 1 . . 1 Programmer 2 | . . . . . 2 Subdweller 3 | . . . 3 . . Best Kill Streak 4 | 2 2 1 4 . 2 Combat Bots Only 2 | . 2 1 2 . 2 Max Kills in Single Turn 2 | 1 1 1 2 . 1 Gunslinging . | . . . . . . Exploded 2 | . . . 2 . . Melee . | . . . . . . Uniques/NPCs Destroyed . | . . . . . . Combat | -11 -10 -10 -10 -8 -6 -------- Run | Yrd Mat Min Sub Rec Fac Hostile Shots Fired 158 | . 43 5 68 . 42 Missed 54 | . 8 2 34 . 10 Hits 104 | . 35 3 34 . 32 Projectile 104 | . 35 3 34 . 32 Critical Strikes 3 | . 2 . . . 1 Damage Taken 1381 | . 469 32 333 . 547 Core 319 | . 142 . 56 . 121 Absorbed by Shields . | . . . . . . Core Remaining (%) 60 | 100 . . . 20 . Volleys Fired 87 | 8 33 2 36 . 8 Largest 3 | 2 2 2 2 . 3 Hottest 145 | 40 105 105 125 . 145 Shots Fired 158 | 16 64 4 53 . 21 Gun 138 | 16 64 4 34 . 20 Cannon . | . . . . . . Launcher 10 | . . . 9 . 1 Special 10 | . . . 10 . . Kinetic 70 | 16 48 . . . 6 Thermal 78 | . 16 4 44 . 14 Explosive 10 | . . . 9 . 1 Electromagnetic . | . . . . . . Robot Hit Streak 16 | 4 10 2 9 . 16 Robot Miss Streak 3 | 3 3 2 2 . 1 Penetration Max . | . . . . . . Secondary Targets 3 | . 1 . . . 2 Max Gunslinging Chain 1 | . 1 . . . 1 Shots Hit Robots 105 | 10 44 2 32 . 17 Core Hits 57 | 6 17 1 23 . 10 Critical Kills 1 | . . . . . 1 Critical Parts Destroyed . | . . . . . . Critical Strikes 1 | . . . . . 1 Destroy 1 | . . . . . 1 Melee Attacks . | . . . . . . Impact . | . . . . . . Slashing . | . . . . . . Piercing . | . . . . . . Sneak Attacks . | . . . . . . Combat Hostiles . | . . . . . . Follow-up Attacks . | . . . . . . Damage Inflicted 1354 | 81 385 23 480 . 385 Guns 1082 | 81 385 23 248 . 345 Cannons . | . . . . . . Explosions 272 | . . . 232 . 40 Melee . | . . . . . . Ramming . | . . . . . . Kinetic 421 | 81 276 . . . 64 Thermal 661 | . 109 23 248 . 281 Explosive 272 | . . . 232 . 40 Electromagnetic . | . . . . . . Impact . | . . . . . . Slashing . | . . . . . . Piercing . | . . . . . . Highest Corruption 5 | . 1 1 1 1 5 Average Corruption 1 | . 1 1 1 1 4 Corruption Purged . | . . . . . . Corruption Blocked . | . . . . . . Effects 8 | . . . 2 5 1 Message Errors 1 | . . . . 1 . Matter Fused 2 | . . . 1 1 . Heat Flow Errors 1 | . . . . 1 . Energy Discharges 3 | . . . 1 2 . Data Loss (major) 1 | . . . . . 1 Overload Shots . | . . . . . . Overflow Damage . | . . . . . . Projectiles . | . . . . . . Explosions . | . . . . . . Melee . | . . . . . . Knockbacks . | . . . . . . Impact . | . . . . . . Kinetic . | . . . . . . Secondary . | . . . . . . Self-Inflicted Damage 39 | . . . 39 . . Shots 1 | . . . 1 . . Rammed . | . . . . . . Targets Rammed . | . . . . . . Kicked . | . . . . . . Crushed . | . . . . . . Highest Temperature 342 | . 48 12 . 97 342 Average Temperature 46 | . 15 8 . 58 135 Received Heat Transfer 600 | . 306 18 126 . 150 Effects 1 | . . . . . 1 Matter Decay 1 | . . . . . 1 Siege Activations . | . . . . . . Martial Activations . | . . . . . . Shielding Activations . | . . . . . . Robots Disrupted . | . . . . . . Combat Hostiles . | . . . . . . Robots Corrupted . | . . . . . . Combat Hostiles . | . . . . . . Parts Fried . | . . . . . . Impact Corruptions . | . . . . . . Robots Melted . | . . . . . . Combat Hostiles . | . . . . . . Parts Melted 4 | . 1 1 2 . . Heat Transferred 1265 | . 248 62 521 . 434 Parts Sabotaged . | . . . . . . Parts Stolen . | . . . . . . Parts Stripped . | . . . . . . Power Chain Reactions . | . . . . . . Alert | -11 -10 -10 -10 -8 -6 ------- Run | Yrd Mat Min Sub Rec Fac Maximum Alert Level . | . . . . . . Low Security (%) 100 | 100 100 100 . 100 100 Level 1 . | . . . . . . Level 2 . | . . . . . . Level 3 . | . . . . . . Level 4 . | . . . . . . Level 5 . | . . . . . . High Security . | . . . . . . Max Security . | . . . . . . Peak Influence 47 | 10 40 36 . 47 40 Initial 47 | . 6 9 . 47 . Average 5 | 1 13 4 . 3 3 Influence Increases 443 | 15 172 56 125 . 75 Destroy 0b10 Robot/C 300 | . 120 40 80 . 60 Destroy 0b10 Robot/NC 20 | 15 5 . . . . Destroy Leader 52 | . 32 10 . . 10 Allied During Kill 6 | . . 6 . . . Destroy Structure 5 | . . . . . 5 Lose Combat Pursuer 60 | . 15 . 45 . . Influence Decreases 431 | 5 157 81 26 99 63 Entered New Map 72 | . 4 16 . 52 . Time Decay 264 | 5 133 45 16 47 18 Lost Part 75 | . 20 . 10 . 45 Lost Ally 20 | . . 20 . . . Squads Dispatched 1 | . 1 . . . . Investigation 1 | . 1 . . . . Extermination . | . . . . . . Reinforcement . | . . . . . . Assault . | . . . . . . Garrison . | . . . . . . Intercept . | . . . . . . Searches Triggered . | . . . . . . Construction Impeded . | . . . . . . Haulers Reinforced . | . . . . . . Active Scanning Responses . | . . . . . . Cargo Convoy Interrupts . | . . . . . . Stealth | -11 -10 -10 -10 -8 -6 --------- Run | Yrd Mat Min Sub Rec Fac Distress Signals 1 | . 1 . . . . Communications Jammed . | . . . . . . Distress Signals . | . . . . . . Times Spotted 36 | . 12 2 12 . 10 Peak Tracking Total 6 | . 4 2 6 . 5 Tactical Retreats 2 | . 1 . 1 . . Traps | -11 -10 -10 -10 -8 -6 ------- Run | Yrd Mat Min Sub Rec Fac Traps Triggered . | . . . . . . Indirectly . | . . . . . . Trap Hack Attempts . | . . . . . . Triggered . | . . . . . . Disarmed . | . . . . . . Reprogrammed . | . . . . . . Reused . | . . . . . . Traps Extracted . | . . . . . . Installed . | . . . . . . Triggered . | . . . . . . Machines | -11 -10 -10 -10 -8 -6 ---------- Run | Yrd Mat Min Sub Rec Fac Machines Disabled 4 | . . . 4 . . Max in Single Turn 3 | . . . 3 . . Machines Repaired . | . . . . . . Machines Dismantled . | . . . . . . Machines Sabotaged . | . . . . . . Overloaded Fab Kills . | . . . . . . Hacking | -11 -10 -10 -10 -8 -6 --------- Run | Yrd Mat Min Sub Rec Fac Machines Accessed 4 | . 2 . . 2 . Terminals 3 | . 2 . . 1 . Fabricators . | . . . . . . Repair Stations . | . . . . . . Recycling Units 1 | . . . . 1 . Scanalyzers . | . . . . . . Garrison Access . | . . . . . . Total Hacks 7 | . 4 . . 3 . Successful 5 | . 2 . . 3 . Failed 2 | . 2 . . . . Catastrophic . | . . . . . . Database Lockouts . | . . . . . . Manual 3 | . 2 . . 1 . Terminals 5 | . 4 . . 1 . Fabricators . | . . . . . . Repair Stations . | . . . . . . Recycling Units 2 | . . . . 2 . Scanalyzers . | . . . . . . Garrison Access . | . . . . . . Terminal Hacks 2 | . 1 . . 1 . Robot Analysis 1 | . 1 . . . . Alert Level 1 | . . . . 1 . Fabricator Hacks . | . . . . . . Repair Station Hacks . | . . . . . . Recycling Unit Hacks 1 | . . . . 1 . Report Inventory 1 | . . . . 1 . Scanalyzer . | . . . . . . Garrison Access Hacks . | . . . . . . Unauthorized Hacks 2 | . 1 . . 1 . Terminals 1 | . 1 . . . . Skim 1 | . 1 . . . . Fabricators . | . . . . . . Repair Stations . | . . . . . . Recycling Units 1 | . . . . 1 . Mask 1 | . . . . 1 . Scanalyzers . | . . . . . . Garrison Access . | . . . . . . Data Cores Recovered . | . . . . . . Used . | . . . . . . Hacking Detections 1 | . 1 . . . . Full Trace Events 1 | . 1 . . . . Feedback Events 1 | . 1 . . . . Corruption 1 | . 1 . . . . Feedback Blocked . | . . . . . . Robot Schematics Acquired . | . . . . . . Robots Built . | . . . . . . Authchips . | . . . . . . Time . | . . . . . . Total Robot Build Rating . | . . . . . . Part Schematics Acquired . | . . . . . . Parts Built . | . . . . . . Authchips . | . . . . . . Time . | . . . . . . Total Part Build Rating . | . . . . . . Parts Repaired . | . . . . . . Time . | . . . . . . Parts Recycled . | . . . . . . Recycled Matter . | . . . . . . Retrieved Matter . | . . . . . . Retrieved Components . | . . . . . . Parts Scanalyzed . | . . . . . . Part Schematics Acquired . | . . . . . . Parts Damaged . | . . . . . . Bothacking | -11 -10 -10 -10 -8 -6 ------------ Run | Yrd Mat Min Sub Rec Fac Used RIF Installer . | . . . . . . Robots Hacked . | . . . . . . Non-combat . | . . . . . . Combat . | . . . . . . Robot Hacks Applied . | . . . . . . Relay Couplers Released . | . . . . . . Fabnet Peak Effective % . | . . . . . . Robots Rewired . | . . . . . . Allies Hacked . | . . . . . . Hacks Repelled . | . . . . . . Allies | -11 -10 -10 -10 -8 -6 -------- Run | Yrd Mat Min Sub Rec Fac Total Allies 3 | . . 3 . . . Largest Group 3 | . . 3 2 . . Highest-Rated Group 40 | . . 40 24 . . Highest-Rated Ally 16 | . . 16 16 . . Total Orders . | . . . . . . Ally Attacks 38 | . . 13 25 . . Total Damage 186 | . . 131 55 . . Kills 2 | . . 1 1 . . Allies Corrupted . | . . . . . . Allies Melted . | . . . . . . Intel | -11 -10 -10 -10 -8 -6 ------- Run | Yrd Mat Min Sub Rec Fac Active Infowar (turns) 556 | 30 110 . . . 416 Optics 416 | . . . . . 416 Sensors 388 | . . . . . 388 Seismic 140 | 30 110 . . . . Robot Analysis Total 1 | . 1 . . . . Derelict Logs Recovered . | . . . . . . Drone Launches . | . . . . . . Drone Recoveries . | . . . . . . Exploration | -11 -10 -10 -10 -8 -6 ------------- Run | Yrd Mat Min Sub Rec Fac Turns Passed 2524 | 115 397 303 444 847 418 Spaces Moved 1356 | 76 222 172 234 475 177 Core 50 | 50 . . . . . Treads . | . . . . . . Legs 1306 | 26 222 172 234 475 177 Wheels . | . . . . . . Hover . | . . . . . . Flight . | . . . . . . Fastest Speed 50 | 50 120 120 120 105 185 Average Speed 151 | 104 120 120 124 175 214 Slowest Speed 265 | 200 120 120 190 190 265 Overloaded Moves . | . . . . . . Propulsion Burnouts . | . . . . . . Robots Hopped . | . . . . . . Potential Cave-ins . | . . . . . . Cave-ins Triggered . | . . . . . . Exploration Rate (%) 32 | 5 32 41 17 93 8 Regions Visited 5 Branch Regions 3 Pre-discovered Areas 1 | . . . 1 . . Known Exits Taken . | . . . . . . Unknown Exits Taken 5 | 1 1 1 1 1 . Scrap Searched . | . . . . . . Spaces Dug 7 | . . . 7 . . Terrain Destroyed 37 | . . . 33 . 4 Melee . | . . . . . . Projectile . | . . . . . . AOE 37 | . . . 33 . 4 Terrain Rammed . | . . . . . . Walls Destroyed . | . . . . . . Machines Disabled . | . . . . . . Actions | -11 -10 -10 -10 -8 -6 --------- Run | Yrd Mat Min Sub Rec Fac Total 1655 | 95 297 265 314 488 196 Wait 158 | . 31 88 29 10 . Move 1351 | 75 221 171 233 474 177 Hop . | . . . . . . Pick Up 12 | 5 3 . 2 . 2 Fast Attach 15 | 7 4 . . 1 3 Attach 5 | . . . . 1 4 Detach 1 | . . . . . 1 Swap 16 | . 2 2 10 1 1 Drop 10 | . 3 2 4 1 . Fire 87 | 8 33 2 36 . 8 Melee . | . . . . . . Ram . | . . . . . . Kick . | . . . . . . Crush . | . . . . . . Escape Stasis . | . . . . . . Rewire . | . . . . . . Trap . | . . . . . . Miscellaneous . | . . . . . . Route ------- -11/Scrapyard -10/Materials -10/Mines (discovered 3 exits: [*Mat x2] / [*Sub]) -10/Subcaves -8/Recycling -6/Factory (discovered 1 exit: [*Fac]) History --------- Turn | Location | Event 26 | -11/Scrapyard | Discovered new exit (range 16) 116 | -11/Scrapyard | Entered Materials 307 | -10/Materials | Build established: Mutant 403 | -10/Materials | Discovered new exit (range 14) 489 | -10/Materials | Core integrity fell below 50% 513 | -10/Materials | Entered Mines 523 | -10/Mines | Assisted by bots powering up and referring to "LRC-V3" 552 | -10/Mines | Met a Derelict bent on vengeance 554 | -10/Mines | Discovered new exit (range 7) 631 | -10/Mines | Build established: Scavenger-Mutant 723 | -10/Mines | Discovered new exit (range 7) 798 | -10/Mines | Discovered new exit (range 4) 816 | -10/Mines | Entered Subcaves 816 | -10/Subcaves | Accompanied by 2 allies 817 | -10/Subcaves | Approached by a straggling Scientist 818 | -10/Subcaves | Ambushed by Subdwellers from Twisted Machinery 882 | -10/Subcaves | Shifting Twisted Machinery released Piercing Trap 905 | -10/Subcaves | Learned location of Zion (-7) 905 | -10/Subcaves | Met a Zionite searching for "candidates" 975 | -10/Subcaves | A swath of the cavern ceiling suddenly collapsed 1221 | -10/Subcaves | Discovered new exit (range 15) 1260 | -10/Subcaves | Entered Recycling 2068 | -8/Recycling | Discovered new exit (range 16) 2107 | -8/Recycling | Entered Factory 2107 | -6/Factory | Evolved 8 slots: Power x1, Propulsion x1, Utility x5, Weapon x1 2187 | -6/Factory | Discovered new exit (range 7) 2405 | -6/Factory | Build established: Scavenger-Skirmisher 2525 | -6/Factory | Self-destructed Last Messages --------------- payload. 02511_ G-67 Veteran unfolds itself. 02511_ G-50 Soldier unfolds itself. 02512_ K-01 Serf cleans the Matter Pump. 02513_ Aluminum Leg destroyed. 02516_ VSS Leg destroyed. 02518_ K-01 Serf collects debris. 02518_ K-01 Serf cleans the Matter Pump. 02518_ G-67 Veteran suffers critical hit (Destroy). 02518_ G-67 Veteran destroyed. 02518_ Switching to secondary target: G-50 Soldier. 02519_ Assault Rifle destroyed. 02519_ K-01 Serf collects debris. 02522_ K-01 Serf cleans the Matter Pump. 02524_ Overheating: Matter decay (-27). 02524_ Imp. Heat Sink destroyed. 02524_ K-01 Serf collects debris. 02524_ M-13 Machinist repairs K-01 Serf. Map ----- +----------------------------------------------------+ | ???# "???"?????????????????????????????????????? | | #### "?? "?????????????????????????????????????? | | ? ????????????????????????????????????? | | """ ""????????????????????????????????????? | | """ """ "?????????????????????????????????? | | """ """ ??????????????????????????????????? | | """ """?????????? ???????????????????????? | | ! ??????????? ???????????????????????? | | ????????????]!???????????????????????? | | #### #????????????]!???????????????????????? | | ???# #????????????]!???????????????????????? | | ???# #???????????? ???????????????????????? | | ???# #???????????? ???????????""??????????? | | ???# #???????????? ??????????"""??????????? | | ???# #????????####/##???????? ? ???????? | | ???# #???????? #???????" """ """??????? | | #### #????????? !#???????" """ """ ??? | | #?????????![ #??????"" """ """ ??? | | ####### #?????????][ #?????? ?? | | ???####+##+#?????????[ #????? ?? | | ???# #?????????? #????? ?? | | ???# #?????????? #???? #???? | | ???# #?????????? #???? ^ ^ #???? | | ???# #?????????? ###? #???? | | ???# #??????#####k###### ^ #???? | | ???# ######## %k@ = ^ #???? | | ???# # ggg % R mk #???? | | ???# # k ! """ """ " " #???? | | ???# """" + """ """ "R"??????? | | ???# """" # u """ """ ?????????? | | ???# """" # w ??????????? | | ???# """" ######## R ?????????? | | ???# """" #??????### #########+########?????????? | | ???# """" #????????# #??????????????????????????? | | ???# #????????# #??????????????????????????? | | ???#########????????# #??????????????????????????? | | ????????????????????# #??????????????????????????? | | ????????????????????# #??????????????????????????? | | ????????????????????# #??????????????????????????? | | ????????????????????# #??????????????????????????? | | ????????????????????# #??????????????????????????? | | ????????????????????# #??????????????????????????? | | ????????????????????# #??????????????????????????? | | ????????????????????? ???????????????????????????? | | ????????????????????? ???????????????????????????? | | ????????????????????? ???????????????????????????? | | ????????????????????? ???????????????????????????? | | ????????????????????? ???????????????????????????? | | ?????????????????????????????????????????????????? | | ?????????????????????????????????????????????????? | +----------------------------------------------------+ Best States ------------- Heat Dissipation 51 Energy Generation 30 Energy Capacity 250 Matter Stores 300 Matter Capacity 300 Sight Range 21 Robot Scan Range 15 Terrain Scan Density 10 Resistance: EX 25 Evasion (%) 55 Item Schematics ----------------- None Robot Schematics ------------------ None Fabricated ------------ Nothing Repaired ---------- Nothing Alien Tech Used ----------------- None Achievements -------------- None Challenges ------------ None Game ------ Seed PointyCoilDrive Manual? 0 Play Time 00:15:50 Cumulative 40.1 hours Start 2025.05.11 @ 21:37:04 End 2025.05.11 @ 21:51:07 Sessions 1 Manual Loads 0 Difficulty Rogue Special Mode None Game No. 93 Rogue 52 Adventurer 41 Explorer 0 Win Type - Total 1 Types 1/0/0/0/0/0/0/0/0/0 Lore% 31 Gallery% 38 Achievement% 44 Wizard Run 0 Options --------- Layout 1 ASCII 0 Keyboard 0 Movement Arrows Keybinds 0 Fullscreen 1 Font 24/Smallcaps Map View 50x35 Zoom Use 0% Tactical HUD 1 Map Filters NONE Filters NONE Steam 1 RUN: 85a1dfc0-2152-4643-9bf9-9c443a7671fe